fUST/lending_fUST_20260611
["ID","MTS","AMOUNT","RATE_DAILY","PERIOD"]
[424744552,1781119839000,-174.10001717,0.0001582,2]
[424744465,1781119839000,-8836.4629976,0.00014194,2]
[424744511,1781119839000,-234.96448547,0.00015353,2]
[424744523,1781119839000,-178.40730589,0.0001582,2]
[424744525,1781119839000,-158.78296568,0.0001582,2]
[424744527,1781119839000,-211.98846127,0.0001582,2]
[424744529,1781119839000,-163.12077519,0.0001582,2]
[424744533,1781119839000,-517.08119519,0.0001582,2]
[424744531,1781119839000,-166.39732978,0.0001582,2]
[424744536,1781119839000,-469.92897094,0.0001582,2]
[424744540,1781119839000,-163.72058438,0.0001582,2]
[424744537,1781119839000,-176.27182073,0.0001582,2]
[424744546,1781119839000,-173.81952035,0.0001582,2]
[424744501,1781119839000,-160.79302393,0.00015233,7]
[424744542,1781119839000,-165.93810187,0.0001582,2]
[424744561,1781119839000,-168.86734238,0.00015828,2]
[424744548,1781119839000,-220.13584859,0.0001582,2]
[424744558,1781119839000,-169.69717804,0.00015828,2]
[424744564,1781119839000,-155.41217374,0.00015828,2]
[424744565,1781119839000,-196.94705292,0.00015828,2]
[424744559,1781119839000,-194.54247002,0.00015828,2]
[424744550,1781119839000,-224.38181169,0.0001582,2]
[424744555,1781119839000,-174.26395097,0.0001582,2]
[424744567,1781119839000,-175.63450057,0.00015828,2]
[424744553,1781119839000,-204.49275488,0.0001582,2]
[424744455,1781119839000,-2166.619732,0.00013818,2]
[424744544,1781119839000,-202.81874192,0.0001582,2]
[424744521,1781119839000,-160.79302394,0.00015798,7]
[424744570,1781119839000,-179.42652551,0.00015828,2]
[424744517,1781119839000,-153.0,0.00015699,7]
[424744503,1781119839000,-153.0,0.00015263,7]
[424744457,1781119839000,-500.0,0.00014063,2]
[424744459,1781119839000,-312.46566081,0.00014105,7]
[424744473,1781119839000,-2166.619732,0.000144,2]
[424744469,1781119839000,-312.46566081,0.00014387,7]
[424744463,1781119839000,-502.32203895,0.00014192,2]
[424744461,1781119839000,-160.79302393,0.00014105,7]
[424744471,1781119839000,-160.79302393,0.00014387,7]
[424744479,1781119839000,-172.3603984,0.00014651,2]
[424744475,1781119839000,-153.0,0.00014536,7]
[424744477,1781119839000,-500.0,0.00014611,2]
[424744491,1781119839000,-177.705034,0.00015068,2]
[424744467,1781119839000,-500.0,0.00014337,2]
[424744487,1781119839000,-636.46,0.00014981,2]
[424744505,1781119839000,-344.72079679,0.00015353,2]
[424744493,1781119839000,-166.1566,0.00015131,2]
[424744515,1781119839000,-2873.0887504,0.00015678,2]
[424744513,1781119839000,-2166.619732,0.00015563,2]
[424744519,1781119839000,-312.46566083,0.00015798,7]
[424744489,1781119839000,-2166.619732,0.00014982,2]
[424744495,1781119839000,-216.0,0.00015158,2]
[424744485,1781119839000,-153.0,0.00014827,7]
[424744483,1781119839000,-160.79302393,0.0001481,7]
[424744481,1781119839000,-312.46566081,0.0001481,7]
[424744497,1781119839000,-948.0179227,0.00015205,2]
[424744499,1781119839000,-312.46566081,0.00015233,7]
[424744658,1781119840000,-360.03917267,0.0001614,2]
[424744646,1781119840000,-244.97582015,0.0001614,2]
[424744648,1781119840000,-337.73468475,0.0001614,2]
[424744659,1781119840000,-178.76435058,0.0001614,2]
[424744644,1781119840000,-339.39435609,0.0001614,2]
[424744635,1781119840000,-408.98550976,0.00016132,2]
[424744641,1781119840000,-352.54364147,0.00016132,2]
[424744639,1781119840000,-348.52790195,0.00016132,2]
[424744637,1781119840000,-173.77636689,0.00016132,2]
[424744622,1781119840000,-327.44116877,0.00016132,2]
[424744665,1781119840000,-344.57949943,0.0001614,2]
[424744642,1781119840000,-440.27169719,0.00016132,2]
[424744661,1781119840000,-367.56439039,0.0001614,2]
[424744674,1781119840000,-238.20397949,0.0001614,2]
[424744667,1781119840000,-386.93090044,0.0001614,2]
[424744652,1781119840000,-310.82434748,0.0001614,2]
[424744654,1781119840000,-181.80072474,0.0001614,2]
[424744656,1781119840000,-393.89410583,0.0001614,2]
[424744650,1781119840000,-389.08494004,0.0001614,2]
[424744672,1781119840000,-165.5609182,0.0001614,2]
[424744670,1781119840000,-218.59148142,0.0001614,2]
[424744676,1781119840000,-433.64335786,0.0001614,2]
[424744680,1781119840000,-197.90017626,0.0001614,2]
[424744683,1781119840000,-332.97375292,0.0001614,2]
[424744629,1781119840000,-226.61019954,0.00016132,2]
[424744678,1781119840000,-180.94156782,0.0001614,2]
[424744684,1781119840000,-2166.619732,0.00016145,2]
[424744663,1781119840000,-349.28857727,0.0001614,2]
[424744631,1781119840000,-194.72670847,0.00016132,2]
[424744603,1781119840000,-236.08748948,0.00016132,2]
[424744628,1781119840000,-405.63748383,0.00016132,2]
[424744692,1781119840000,-153.0,0.0001628,7]
[424744571,1781119840000,-180.01958634,0.00015828,2]
[424744573,1781119840000,-183.78219519,0.00015828,2]
[424744575,1781119840000,-174.64428863,0.00015828,2]
[424744579,1781119840000,-183.4005193,0.00015828,2]
[424744577,1781119840000,-193.46545022,0.00015828,2]
[424744581,1781119840000,-186.20405442,0.00015828,2]
[424744583,1781119840000,-216.82167893,0.00015828,2]
[424744591,1781119840000,-600.0,0.00015989,2]
[424744590,1781119840000,-537.798,0.0001589,2]
[424744587,1781119840000,-150.19324807,0.00015828,2]
[424744585,1781119840000,-166.48687646,0.00015828,2]
[424744595,1781119840000,-317.56593136,0.00016132,2]
[424744626,1781119840000,-225.00746206,0.00016132,2]
[424744594,1781119840000,-160.0,0.00016055,3]
[424744598,1781119840000,-356.81461179,0.00016132,2]
[424744601,1781119840000,-222.80123932,0.00016132,2]
[424744607,1781119840000,-228.57280591,0.00016132,2]
[424744616,1781119840000,-168.52300448,0.00016132,2]
[424744605,1781119840000,-176.3485506,0.00016132,2]
[424744618,1781119840000,-689.44159358,0.00016132,2]
[424744609,1781119840000,-326.24155038,0.00016132,2]
[424744611,1781119840000,-153.71575652,0.00016132,2]
[424744612,1781119840000,-172.28974971,0.00016132,2]
[424744614,1781119840000,-332.79465955,0.00016132,2]
[424744620,1781119840000,-704.89345641,0.00016132,2]
[424744624,1781119840000,-331.87620374,0.00016132,2]
[424744633,1781119840000,-448.76362337,0.00016132,2]
[424744599,1781119840000,-423.97692254,0.00016132,2]
[424744690,1781119840000,-153.0,0.0001628,7]
[424744807,1781119840000,-500.0,0.00018894,2]
[424744688,1781119840000,-153.0,0.0001628,7]
[424744753,1781119840000,-206.342317,0.00018795,2]
[424744751,1781119840000,-198.873415,0.00018795,2]
[424744759,1781119840000,-206.342317,0.00018795,2]
[424744761,1781119840000,-151.0,0.00018795,2]
[424744763,1781119840000,-151.0,0.00018795,2]
[424744765,1781119840000,-1580.0,0.000188,2]
[424744757,1781119840000,-206.342317,0.00018795,2]
[424744770,1781119840000,-500.0,0.00018894,2]
[424744767,1781119840000,-5814.9069364,0.00018829,2]
[424744768,1781119840000,-500.0,0.00018893,2]
[424744772,1781119840000,-500.0,0.00018894,2]
[424744783,1781119840000,-500.0,0.00018894,2]
[424744787,1781119840000,-500.0,0.00018894,2]
[424744781,1781119840000,-500.0,0.00018894,2]
[424744788,1781119840000,-500.0,0.00018894,2]
[424744785,1781119840000,-500.0,0.00018894,2]
[424744777,1781119840000,-500.0,0.00018894,2]
[424744779,1781119840000,-500.0,0.00018894,2]
[424744790,1781119840000,-500.0,0.00018894,2]
[424744792,1781119840000,-500.0,0.00018894,2]
[424744796,1781119840000,-500.0,0.00018894,2]
[424744794,1781119840000,-549.44,0.00018894,2]
[424744798,1781119840000,-500.0,0.00018894,2]
[424744802,1781119840000,-500.0,0.00018894,2]
[424744804,1781119840000,-500.0,0.00018894,2]
[424744805,1781119840000,-231.24142281,0.00018894,2]
[424744809,1781119840000,-500.0,0.00018894,2]
[424744749,1781119840000,-151.0,0.00018795,2]
[424744755,1781119840000,-206.342317,0.00018795,2]
[424744800,1781119840000,-500.0,0.00018894,2]
[424744745,1781119840000,-151.0,0.00018795,2]
[424744747,1781119840000,-151.0,0.00018795,2]
[424744694,1781119840000,-153.0,0.0001628,7]
[424744696,1781119840000,-153.0,0.0001628,7]
[424744698,1781119840000,-164.8261041,0.0001628,7]
[424744702,1781119840000,-250.0,0.00016372,2]
[424744700,1781119840000,-152.0,0.00016335,7]
[424744704,1781119840000,-2166.619732,0.00016727,2]
[424744708,1781119840000,-720.0,0.00017588,2]
[424744706,1781119840000,-212.737,0.00017048,2]
[424744710,1781119840000,-231.322208,0.00017776,2]
[424744711,1781119840000,-152.83189886,0.00017877,6]
[424744716,1781119840000,-500.0,0.00017999,2]
[424744714,1781119840000,-500.0,0.00017944,2]
[424744713,1781119840000,-500.0,0.00017944,2]
[424744686,1781119840000,-153.0,0.0001628,7]
[424744718,1781119840000,-19217.59703339,0.00018,2]
[424744720,1781119840000,-229.02800837,0.000187,2]
[424744733,1781119840000,-256118.91833692,0.00018795,2]
[424744737,1781119840000,-481.069879,0.00018795,2]
[424744729,1781119840000,-566.8,0.00018719,3]
[424744741,1781119840000,-481.069879,0.00018795,2]
[424744743,1781119840000,-151.0,0.00018795,2]
[424744739,1781119840000,-481.069879,0.00018795,2]
[424744724,1781119840000,-240.22623216,0.000187,2]
[424744731,1781119840000,-168153.25158467,0.00018729,2]
[424744727,1781119840000,-242.260141,0.000187,2]
[424744735,1781119840000,-481.069879,0.00018795,2]
[424744722,1781119840000,-240.22623216,0.000187,2]
[424744726,1781119840000,-249.48589801,0.000187,2]
[424744864,1781119841000,-500.0,0.00018894,2]
[424744860,1781119841000,-536.85,0.00018894,2]
[424744858,1781119841000,-536.85,0.00018894,2]
[424744867,1781119841000,-500.0,0.00018894,2]
[424744869,1781119841000,-500.0,0.00018894,2]
[424744871,1781119841000,-639.08644557,0.00018894,2]
[424744873,1781119841000,-151.0,0.000189,2]
[424744874,1781119841000,-151.0,0.000189,2]
[424744880,1781119841000,-151.0,0.000189,2]
[424744865,1781119841000,-500.0,0.00018894,2]
[424744888,1781119841000,-151.0,0.000189,2]
[424744878,1781119841000,-151.0,0.000189,2]
[424744884,1781119841000,-151.0,0.000189,2]
[424744886,1781119841000,-151.0,0.000189,2]
[424744882,1781119841000,-151.0,0.000189,2]
[424744862,1781119841000,-537.0711677,0.00018894,2]
[424744890,1781119841000,-151.0,0.000189,2]
[424744891,1781119841000,-151.0,0.000189,2]
[424744893,1781119841000,-636.46,0.00018993,2]
[424744899,1781119841000,-636.46,0.00018994,2]
[424744895,1781119841000,-636.46,0.00018994,2]
[424744902,1781119841000,-636.46,0.00018994,2]
[424744876,1781119841000,-151.0,0.000189,2]
[424744849,1781119841000,-536.85,0.00018894,2]
[424744856,1781119841000,-536.85,0.00018894,2]
[424744851,1781119841000,-536.85,0.00018894,2]
[424744897,1781119841000,-636.46,0.00018994,2]
[424744813,1781119841000,-500.0,0.00018894,2]
[424744811,1781119841000,-500.0,0.00018894,2]
[424744814,1781119841000,-500.0,0.00018894,2]
[424744816,1781119841000,-500.0,0.00018894,2]
[424744818,1781119841000,-253.23,0.00018894,2]
[424744821,1781119841000,-536.85,0.00018894,2]
[424744825,1781119841000,-536.85,0.00018894,2]
[424744820,1781119841000,-536.85,0.00018894,2]
[424744823,1781119841000,-536.85,0.00018894,2]
[424744853,1781119841000,-536.85,0.00018894,2]
[424744827,1781119841000,-536.85,0.00018894,2]
[424744836,1781119841000,-536.85,0.00018894,2]
[424744838,1781119841000,-536.85,0.00018894,2]
[424744833,1781119841000,-536.85,0.00018894,2]
[424744840,1781119841000,-536.85,0.00018894,2]
[424744829,1781119841000,-536.85,0.00018894,2]
[424744842,1781119841000,-536.85,0.00018894,2]
[424744845,1781119841000,-536.85,0.00018894,2]
[424744854,1781119841000,-536.85,0.00018894,2]
[424744847,1781119841000,-536.85,0.00018894,2]
[424744844,1781119841000,-536.85,0.00018894,2]
[424744831,1781119841000,-536.85,0.00018894,2]
[424744834,1781119841000,-536.85,0.00018894,2]
[424744906,1781119841000,-636.46,0.00018994,2]
[424744901,1781119841000,-636.46,0.00018994,2]
[424744981,1781119841000,-190.34962631,0.000194,2]
[424744978,1781119841000,-798.10057432,0.000194,2]
[424744970,1781119841000,-190.34962631,0.000192,2]
[424744983,1781119841000,-6290.83914833,0.000195,2]
[424744984,1781119841000,-798.10057432,0.000195,2]
[424744985,1781119841000,-300.0,0.00019589,3]
[424744987,1781119841000,-196.07251938,0.00019596,2]
[424744989,1781119841000,-315.83571789,0.00019596,2]
[424744988,1781119841000,-175.46428772,0.00019596,2]
[424744994,1781119841000,-1055.40635399,0.00019596,2]
[424744975,1781119841000,-6290.83914833,0.000194,2]
[424744991,1781119841000,-329.81448562,0.00019596,2]
[424744996,1781119841000,-1649.07242812,0.00019599,2]
[424744993,1781119841000,-593.66607412,0.00019596,2]
[424744997,1781119841000,-1037.17098884,0.00019698,2]
[424745003,1781119841000,-414.79564981,0.00019995,2]
[424744999,1781119841000,-798.10057432,0.000197,2]
[424745000,1781119841000,-151.0,0.000197,2]
[424745001,1781119841000,-6290.83914833,0.000199,2]
[424745002,1781119841000,-798.10057432,0.000199,2]
[424745004,1781119841000,-115046.80118907,0.0002,2]
[424744904,1781119841000,-636.46,0.00018994,2]
[424744995,1781119841000,-224.0828793,0.00019596,2]
[424744973,1781119841000,-864.0,0.00019347,2]
[424744998,1781119841000,-6290.83914833,0.000197,2]
[424744955,1781119841000,-228.42501838,0.0001901,2]
[424744908,1781119841000,-636.46,0.00018994,2]
[424744958,1781119841000,-768.91038747,0.00019161,2]
[424744910,1781119841000,-636.46,0.00018994,2]
[424744911,1781119841000,-636.46,0.00018994,2]
[424744913,1781119841000,-636.46,0.00018994,2]
[424744914,1781119841000,-636.46,0.00018994,2]
[424744919,1781119841000,-636.46,0.00018994,2]
[424744916,1781119841000,-636.46,0.00018994,2]
[424744921,1781119841000,-636.46,0.00018994,2]
[424744924,1781119841000,-636.46,0.00018994,2]
[424744929,1781119841000,-636.46,0.00018994,2]
[424744926,1781119841000,-636.46,0.00018994,2]
[424744960,1781119841000,-160.0,0.00019161,2]
[424744937,1781119841000,-636.46,0.00018994,2]
[424744932,1781119841000,-636.46,0.00018994,2]
[424744946,1781119841000,-1000.0,0.00018995,2]
[424744940,1781119841000,-636.52571783,0.00018994,2]
[424744952,1781119841000,-1400.0,0.00019,2]
[424744943,1781119841000,-1000.0,0.00018995,2]
[424744950,1781119841000,-332.5,0.00018995,2]
[424744965,1781119841000,-6290.83914833,0.000192,2]
[424744963,1781119841000,-300.0,0.00019178,2]
[424744968,1781119841000,-798.10057432,0.000192,2]
[424744934,1781119841000,-636.46,0.00018994,2]
[424745041,1781119842000,-151.0,0.00021,4]
[424745036,1781119842000,-2374.66429649,0.00020645,2]
[424745044,1781119842000,-505.74714309,0.00021353,2]
[424745049,1781119842000,-150.293,0.00021671,2]
[424745051,1781119842000,-247.172,0.00021671,2]
[424745050,1781119842000,-219.189,0.00021671,2]
[424745040,1781119842000,-6290.83914833,0.00021,2]
[424745042,1781119842000,-1000.0,0.00021282,10]
[424745039,1781119842000,-500.0,0.00020805,2]
[424745034,1781119842000,-6290.83914833,0.000205,2]
[424745048,1781119842000,-151.0,0.000216,3]
[424745046,1781119842000,-372.109621,0.00021479,2]
[424745047,1781119842000,-252.84729272,0.00021582,2]
[424745058,1781119842000,-311.586,0.00021753,2]
[424745045,1781119842000,-349.7793694,0.00021449,2]
[424745063,1781119842000,-500.0,0.00021917,2]
[424745053,1781119842000,-150.724,0.00021671,2]
[424745064,1781119842000,-501.47559343,0.00021917,2]
[424745052,1781119842000,-249.07,0.00021671,2]
[424745055,1781119842000,-179.908074,0.00021747,2]
[424745054,1781119842000,-284.528,0.00021671,2]
[424745056,1781119842000,-2208.0,0.00021753,2]
[424745060,1781119842000,-444.0,0.00021753,2]
[424745061,1781119842000,-825.0,0.00021833,2]
[424745059,1781119842000,-188.08,0.00021753,2]
[424745031,1781119842000,-6290.83914833,0.000203,2]
[424745043,1781119842000,-151.0,0.000213,3]
[424745032,1781119842000,-151.0,0.000203,3]
[424745010,1781119842000,-481.069879,0.0002,2]
[424745035,1781119842000,-151.0,0.000206,4]
[424745009,1781119842000,-481.069879,0.0002,2]
[424745011,1781119842000,-481.069879,0.0002,2]
[424745007,1781119842000,-6332.39014032,0.0002,2]
[424745008,1781119842000,-121719.11947174,0.0002,2]
[424745012,1781119842000,-481.069879,0.0002,2]
[424745013,1781119842000,-151.0,0.0002,2]
[424745015,1781119842000,-151.0,0.0002,2]
[424745016,1781119842000,-151.0,0.0002,2]
[424745014,1781119842000,-151.0,0.0002,2]
[424745021,1781119842000,-206.342317,0.0002,2]
[424745024,1781119842000,-610.58,0.0002,2]
[424745022,1781119842000,-151.0,0.0002,2]
[424745033,1781119842000,-561.48572069,0.00020415,2]
[424745020,1781119842000,-206.342317,0.0002,2]
[424745017,1781119842000,-151.0,0.0002,2]
[424745057,1781119842000,-3625.0,0.00021753,2]
[424745019,1781119842000,-206.342317,0.0002,2]
[424745025,1781119842000,-11307.016836,0.000201,2]
[424745023,1781119842000,-151.0,0.0002,2]
[424745027,1781119842000,-336.99991043,0.00020257,2]
[424745037,1781119842000,-6290.83914833,0.000207,2]
[424745038,1781119842000,-171.18138713,0.00020795,2]
[424745026,1781119842000,-6290.83914833,0.000201,2]
[424745029,1781119842000,-500.0,0.00020257,2]
[424745030,1781119842000,-151.0,0.00020257,2]
[424745028,1781119842000,-167.89739701,0.00020257,2]
[424745018,1781119842000,-206.342317,0.0002,2]
[424745062,1781119842000,-500.93972687,0.00021917,2]
[424745107,1781119842000,-501.53913682,0.00021917,2]
[424745065,1781119842000,-500.95185502,0.00021917,2]
[424745100,1781119842000,-500.0,0.00021917,2]
[424745093,1781119842000,-500.0,0.00021917,2]
[424745096,1781119842000,-500.0,0.00021917,2]
[424745098,1781119842000,-500.0,0.00021917,2]
[424745102,1781119842000,-502.57092207,0.00021917,2]
[424745092,1781119842000,-501.54797272,0.00021917,2]
[424745103,1781119842000,-502.76360363,0.00021917,2]
[424745104,1781119842000,-500.63568854,0.00021917,2]
[424745115,1781119842000,-500.0,0.00021917,2]
[424745105,1781119842000,-502.72113229,0.00021917,2]
[424745106,1781119842000,-501.71598152,0.00021917,2]
[424745112,1781119842000,-500.0,0.00021917,2]
[424745101,1781119842000,-501.77410861,0.00021917,2]
[424745108,1781119842000,-502.20236676,0.00021917,2]
[424745111,1781119842000,-501.17330746,0.00021917,2]
[424745109,1781119842000,-501.41199516,0.00021917,2]
[424745114,1781119842000,-501.57182235,0.00021917,2]
[424745110,1781119842000,-501.45109885,0.00021917,2]
[424745116,1781119842000,-563.32223197,0.00021917,2]
[424745117,1781119842000,-500.0,0.00021917,2]
[424745121,1781119842000,-500.0,0.00021917,2]
[424745119,1781119842000,-500.0,0.00021917,2]
[424745118,1781119842000,-500.0,0.00021917,2]
[424745120,1781119842000,-500.0,0.00021917,2]
[424745123,1781119842000,-500.0,0.00021917,2]
[424745067,1781119842000,-500.0,0.00021917,2]
[424745113,1781119842000,-501.31233982,0.00021917,2]
[424745099,1781119842000,-501.85968899,0.00021917,2]
[424745122,1781119842000,-500.0,0.00021917,2]
[424745095,1781119842000,-500.0,0.00021917,2]
[424745097,1781119842000,-500.0,0.00021917,2]
[424745070,1781119842000,-555.93006521,0.00021917,2]
[424745068,1781119842000,-500.0,0.00021917,2]
[424745071,1781119842000,-500.0,0.00021917,2]
[424745072,1781119842000,-500.0,0.00021917,2]
[424745076,1781119842000,-500.75922263,0.00021917,2]
[424745073,1781119842000,-502.85465053,0.00021917,2]
[424745074,1781119842000,-500.0,0.00021917,2]
[424745066,1781119842000,-500.0,0.00021917,2]
[424745077,1781119842000,-500.94453419,0.00021917,2]
[424745075,1781119842000,-507.53,0.00021917,2]
[424745079,1781119842000,-500.0,0.00021917,2]
[424745090,1781119842000,-500.56662279,0.00021917,2]
[424745069,1781119842000,-500.0,0.00021917,2]
[424745078,1781119842000,-345.54765891,0.00021917,2]
[424745080,1781119842000,-500.0,0.00021917,2]
[424745091,1781119842000,-500.0,0.00021917,2]
[424745086,1781119842000,-501.15120023,0.00021917,2]
[424745085,1781119842000,-500.0,0.00021917,2]
[424745083,1781119842000,-500.74905973,0.00021917,2]
[424745094,1781119842000,-500.0,0.00021917,2]
[424745081,1781119842000,-500.0,0.00021917,2]
[424745084,1781119842000,-501.78656977,0.00021917,2]
[424745087,1781119842000,-502.04143885,0.00021917,2]
[424745082,1781119842000,-501.01156911,0.00021917,2]
[424745089,1781119842000,-500.0,0.00021917,2]
[424745088,1781119842000,-500.93105559,0.00021917,2]
[424745169,1781119843000,-500.0,0.00021917,2]
[424745166,1781119843000,-500.0,0.00021917,2]
[424745170,1781119843000,-502.06642848,0.00021917,2]
[424745164,1781119843000,-500.84582337,0.00021917,2]
[424745161,1781119843000,-500.0,0.00021917,2]
[424745165,1781119843000,-500.0,0.00021917,2]
[424745160,1781119843000,-575.66726176,0.00021917,2]
[424745167,1781119843000,-500.0,0.00021917,2]
[424745158,1781119843000,-500.0,0.00021917,2]
[424745163,1781119843000,-500.0,0.00021917,2]
[424745159,1781119843000,-151.0,0.00021917,2]
[424745177,1781119843000,-500.0,0.00021917,2]
[424745172,1781119843000,-500.0,0.00021917,2]
[424745171,1781119843000,-500.0,0.00021917,2]
[424745168,1781119843000,-500.0,0.00021917,2]
[424745174,1781119843000,-500.0,0.00021917,2]
[424745178,1781119843000,-368.63982151,0.00021917,2]
[424745176,1781119843000,-502.21820625,0.00021917,2]
[424745175,1781119843000,-500.84551255,0.00021917,2]
[424745181,1781119843000,-501.37303305,0.00021917,2]
[424745185,1781119843000,-500.0,0.00021917,2]
[424745179,1781119843000,-500.0,0.00021917,2]
[424745148,1781119843000,-500.0,0.00021917,2]
[424745183,1781119843000,-500.96650152,0.00021917,2]
[424745173,1781119843000,-501.35847172,0.00021917,2]
[424745156,1781119843000,-151.0,0.00021917,2]
[424745145,1781119843000,-500.6234303,0.00021917,2]
[424745155,1781119843000,-500.0,0.00021917,2]
[424745182,1781119843000,-500.0,0.00021917,2]
[424745125,1781119843000,-541.79405749,0.00021917,2]
[424745128,1781119843000,-500.0,0.00021917,2]
[424745124,1781119843000,-500.0,0.00021917,2]
[424745126,1781119843000,-500.0,0.00021917,2]
[424745127,1781119843000,-500.0,0.00021917,2]
[424745131,1781119843000,-500.0,0.00021917,2]
[424745143,1781119843000,-500.0,0.00021917,2]
[424745146,1781119843000,-538.17153644,0.00021917,2]
[424745142,1781119843000,-501.52268901,0.00021917,2]
[424745144,1781119843000,-500.0,0.00021917,2]
[424745151,1781119843000,-500.0,0.00021917,2]
[424745141,1781119843000,-500.0,0.00021917,2]
[424745135,1781119843000,-500.0,0.00021917,2]
[424745138,1781119843000,-500.0,0.00021917,2]
[424745139,1781119843000,-500.0,0.00021917,2]
[424745140,1781119843000,-500.0,0.00021917,2]
[424745147,1781119843000,-500.0,0.00021917,2]
[424745152,1781119843000,-151.0,0.00021917,2]
[424745149,1781119843000,-501.03163582,0.00021917,2]
[424745154,1781119843000,-452.7,0.00021917,2]
[424745150,1781119843000,-500.0,0.00021917,2]
[424745153,1781119843000,-500.0,0.00021917,2]
[424745157,1781119843000,-500.0,0.00021917,2]
[424745133,1781119843000,-502.16273112,0.00021917,2]
[424745187,1781119843000,-151.0,0.00021917,2]
[424745162,1781119843000,-500.0,0.00021917,2]
[424745186,1781119843000,-500.0,0.00021917,2]
[424745216,1781119843000,-500.0,0.00021917,2]
[424745220,1781119843000,-610.93696149,0.00021917,2]
[424745219,1781119843000,-502.24944447,0.00021917,2]
[424745215,1781119843000,-501.04131185,0.00021917,2]
[424745217,1781119843000,-500.0,0.00021917,2]
[424745213,1781119843000,-500.0,0.00021917,2]
[424745214,1781119843000,-500.0,0.00021917,2]
[424745218,1781119843000,-500.82498264,0.00021917,2]
[424745224,1781119843000,-500.0,0.00021917,2]
[424745227,1781119843000,-500.0,0.00021917,2]
[424745226,1781119843000,-501.17727119,0.00021917,2]
[424745222,1781119843000,-500.0,0.00021917,2]
[424745225,1781119843000,-500.0,0.00021917,2]
[424745229,1781119843000,-500.0,0.00021917,2]
[424745235,1781119843000,-500.0,0.00021917,2]
[424745228,1781119843000,-500.0,0.00021917,2]
[424745231,1781119843000,-500.0,0.00021917,2]
[424745233,1781119843000,-508.79,0.00021917,2]
[424745232,1781119843000,-500.0,0.00021917,2]
[424745236,1781119843000,-500.0,0.00021917,2]
[424745230,1781119843000,-500.0,0.00021917,2]
[424745238,1781119843000,-500.75319264,0.00021917,2]
[424745237,1781119843000,-501.21229497,0.00021917,2]
[424745180,1781119843000,-502.38713084,0.00021917,2]
[424745234,1781119843000,-221.51733983,0.00021917,2]
[424745223,1781119843000,-500.0,0.00021917,2]
[424745212,1781119843000,-500.0,0.00021917,2]
[424745211,1781119843000,-500.0,0.00021917,2]
[424745184,1781119843000,-500.0,0.00021917,2]
[424745189,1781119843000,-500.0,0.00021917,2]
[424745221,1781119843000,-501.27067001,0.00021917,2]
[424745199,1781119843000,-500.0,0.00021917,2]
[424745201,1781119843000,-500.0,0.00021917,2]
[424745188,1781119843000,-500.0,0.00021917,2]
[424745191,1781119843000,-500.0,0.00021917,2]
[424745195,1781119843000,-500.79896645,0.00021917,2]
[424745194,1781119843000,-500.04214108,0.00021917,2]
[424745190,1781119843000,-500.0,0.00021917,2]
[424745192,1781119843000,-500.0,0.00021917,2]
[424745193,1781119843000,-500.0,0.00021917,2]
[424745239,1781119843000,-73.98831716,0.00021917,2]
[424745200,1781119843000,-502.52092568,0.00021917,2]
[424745198,1781119843000,-500.0,0.00021917,2]
[424745197,1781119843000,-500.0,0.00021917,2]
[424745210,1781119843000,-500.0,0.00021917,2]
[424745202,1781119843000,-501.00570339,0.00021917,2]